fUST/lending_fUST_20250217
["ID","MTS","AMOUNT","RATE_DAILY","PERIOD"]
[353361334,1739796573536,-500.0,0.00011041,2]
[353361335,1739796573560,-501.43737311,0.00011041,2]
[353361336,1739796573585,-500.0,0.00011041,2]
[353361337,1739796573609,-500.0,0.00011041,2]
[353361338,1739796573633,-367.87,0.00011041,2]
[353361339,1739796573658,-502.06124481,0.00011041,2]
[353361340,1739796573682,-500.0,0.00011041,2]
[353361341,1739796573707,-500.0,0.00011041,2]
[353361342,1739796573732,-500.0,0.00011041,2]
[353361343,1739796573756,-500.0,0.00011041,2]
[353361344,1739796573780,-500.0,0.00011041,2]
[353361345,1739796573903,-500.0,0.00011041,2]
[353361346,1739796573929,-500.0,0.00011041,2]
[353361347,1739796573954,-500.0,0.00011041,2]
[353361348,1739796573979,-500.0,0.00011041,2]
[353361349,1739796574003,-500.0,0.00011041,2]
[353361350,1739796574028,-500.0,0.00011041,2]
[353361351,1739796574053,-500.0,0.00011041,2]
[353361352,1739796574076,-500.0,0.00011041,2]
[353361353,1739796574099,-500.0,0.00011041,2]
[353361354,1739796574122,-500.0,0.00011041,2]
[353361355,1739796574144,-501.27651666,0.00011041,2]
[353361356,1739796574168,-500.0,0.00011041,2]
[353361357,1739796574192,-500.0,0.00011041,2]
[353361358,1739796574215,-500.0,0.00011041,2]
[353361359,1739796574238,-500.0,0.00011041,2]
[353361360,1739796574263,-500.0,0.00011041,2]
[353361361,1739796574290,-500.0,0.00011041,2]
[353361362,1739796574315,-500.0,0.00011041,2]
[353361363,1739796574340,-500.0,0.00011041,2]
[353361364,1739796574367,-500.0,0.00011041,2]
[353361365,1739796574391,-500.0,0.00011041,2]
[353361366,1739796574416,-500.0,0.00011041,2]
[353361367,1739796574440,-500.0,0.00011041,2]
[353361368,1739796574466,-310.21,0.00011041,2]
[353361369,1739796574492,-500.0,0.00011041,2]
[353361370,1739796574517,-500.0,0.00011041,2]
[353361371,1739796574542,-500.0,0.00011041,2]
[353361372,1739796574568,-500.0,0.00011041,2]
[353361373,1739796574592,-500.0,0.00011041,2]
[353361374,1739796574616,-500.0,0.00011041,2]
[353361375,1739796574639,-500.0,0.00011041,2]
[353361376,1739796574663,-500.0,0.00011123,2]
[353361377,1739796574688,-191.99,0.00011123,2]
[353361378,1739796574711,-492.37,0.00011123,2]
[353361379,1739796574735,-500.0,0.00011123,2]
[353361380,1739796574759,-500.0,0.00011123,2]
[353361381,1739796574781,-500.0,0.00011123,2]
[353361382,1739796574806,-500.0,0.00011123,2]
[353361383,1739796574830,-500.0,0.00011123,2]
[353361384,1739796574853,-500.0,0.00011123,2]
[353361385,1739796574876,-500.0,0.00011123,2]
[353361386,1739796574899,-500.0,0.00011123,2]
[353361387,1739796574923,-505.43319536,0.00011123,2]
[353361388,1739796574947,-500.0,0.00011123,2]
[353361389,1739796574969,-500.0,0.00011123,2]
[353361390,1739796574993,-522.51629953,0.00011123,2]
[353361391,1739796575017,-500.0,0.00011123,2]
[353361392,1739796575044,-500.0,0.00011123,2]
[353361393,1739796575067,-511.99619282,0.00011123,2]
[353361394,1739796575090,-500.0,0.00011123,2]
[353361395,1739796575114,-500.0,0.00011123,2]
[353361396,1739796575139,-500.0,0.00011123,2]
[353361397,1739796575163,-500.0,0.00011123,2]
[353361398,1739796575188,-261.43,0.00011123,2]
[353361399,1739796575211,-579.16,0.00011123,2]
[353361400,1739796575235,-500.0,0.00011123,2]
[353361401,1739796575259,-695.58,0.00011123,2]
[353361402,1739796575285,-500.0,0.00011123,2]
[353361403,1739796575308,-500.0,0.00011123,2]
[353361404,1739796575332,-3724.4,0.00011123,2]
[353361405,1739796575357,-500.0,0.00011123,2]
[353361406,1739796575387,-500.0,0.00011123,2]
[353361407,1739796575413,-500.0,0.00011123,2]
[353361408,1739796575436,-500.0,0.00011123,2]
[353361409,1739796575463,-500.0,0.00011123,2]
[353361410,1739796575486,-500.0,0.00011123,2]
[353361411,1739796575510,-500.0,0.00011123,2]
[353361412,1739796575533,-500.0,0.00011123,2]
[353361413,1739796575557,-500.0,0.00011123,2]
[353361414,1739796575580,-500.0,0.00011123,2]
[353361415,1739796575603,-500.0,0.00011123,2]
[353361416,1739796575627,-500.0,0.00011123,2]
[353361417,1739796575649,-500.0,0.00011123,2]
[353361418,1739796575674,-500.0,0.00011123,2]
[353361419,1739796575699,-500.0,0.00011123,2]
[353361420,1739796575723,-500.0,0.00011123,2]
[353361421,1739796575751,-500.0,0.00011123,2]
[353361422,1739796575777,-500.0,0.00011123,2]
[353361423,1739796575805,-500.0,0.00011123,2]
[353361424,1739796575829,-500.0,0.00011123,2]
[353361425,1739796575853,-500.0,0.00011123,2]
[353361426,1739796575878,-500.0,0.00011123,2]
[353361427,1739796575901,-421.53622704,0.00011123,2]
[353361428,1739796575927,-2574.71,0.00011123,2]
[353361429,1739796575950,-500.0,0.00011123,2]
[353361430,1739796575975,-500.0,0.00011123,2]
[353361431,1739796575998,-221.91,0.00011123,2]
[353361432,1739796576022,-500.0,0.00011123,2]
[353361433,1739796576047,-500.0,0.00011123,2]
[353361434,1739796576070,-500.0,0.00011123,2]
[353361435,1739796576094,-500.0,0.00011123,2]
[353361436,1739796576118,-500.0,0.00011123,2]
[353361437,1739796576144,-500.0,0.00011123,2]
[353361438,1739796576170,-500.0,0.00011123,2]
[353361439,1739796576193,-500.0,0.00011123,2]
[353361440,1739796576216,-500.0,0.00011123,2]
[353361441,1739796576239,-500.0,0.00011123,2]
[353361442,1739796576262,-500.0,0.00011205,2]
[353361443,1739796576287,-500.0,0.00011205,2]
[353361444,1739796576310,-500.0,0.00011205,2]
[353361445,1739796576332,-500.0,0.00011205,2]
[353361446,1739796576359,-695.58,0.00011205,2]
[353361447,1739796576385,-332.88,0.00011205,2]
[353361448,1739796576503,-285.65,0.00011205,2]
[353361449,1739796576528,-3724.4,0.00011205,2]
[353361450,1739796576553,-462.51,0.00011205,2]
[353361451,1739796576577,-500.0,0.00011205,2]
[353361452,1739796576601,-542.01,0.00011205,2]
[353361453,1739796576625,-500.0,0.00011205,2]
[353361454,1739796576648,-500.0,0.00011205,2]
[353361455,1739796576675,-500.0,0.00011205,2]
[353361456,1739796576699,-500.0,0.00011205,2]
[353361457,1739796576728,-500.0,0.00011205,2]
[353361458,1739796576752,-458.44,0.00011205,2]
[353361459,1739796576779,-500.0,0.00011205,2]
[353361460,1739796576803,-500.0,0.00011205,2]
[353361461,1739796576827,-500.0,0.00011205,2]
[353361462,1739796576852,-500.0,0.00011205,2]
[353361463,1739796576875,-244.15,0.00011205,2]
[353361464,1739796576898,-500.0,0.00011205,2]
[353361465,1739796576922,-500.0,0.00011205,2]
[353361466,1739796576946,-500.0,0.00011205,2]
[353361467,1739796576970,-500.0,0.00011205,2]
[353361468,1739796576995,-2574.71,0.00011205,2]
[353361469,1739796577019,-500.0,0.00011205,2]
[353361470,1739796577043,-500.0,0.00011205,2]
[353361471,1739796577067,-500.0,0.00011205,2]
[353361472,1739796577089,-500.0,0.00011205,2]
[353361473,1739796577112,-500.0,0.00011205,2]
[353361474,1739796577136,-500.0,0.00011205,2]
[353361475,1739796577161,-500.0,0.00011205,2]
[353361476,1739796577184,-500.0,0.00011205,2]
[353361477,1739796577207,-395.32,0.00011205,2]
[353361478,1739796577228,-500.0,0.00011258,2]
[353361479,1739796577252,-413.43,0.00011287,2]
[353361480,1739796577277,-500.0,0.00011287,2]
[353361481,1739796577309,-566.17,0.00011287,2]
[353361482,1739796577333,-500.0,0.00011287,2]
[353361483,1739796577359,-695.58,0.00011287,2]
[353361484,1739796577384,-3724.4,0.00011287,2]
[353361485,1739796577409,-500.0,0.00011287,2]
[353361486,1739796577435,-500.0,0.00011287,2]
[353361487,1739796577459,-500.0,0.00011287,2]
[353361488,1739796577483,-500.0,0.00011287,2]
[353361489,1739796577508,-500.0,0.00011287,2]
[353361490,1739796577532,-500.0,0.00011287,2]
[353361491,1739796577556,-500.0,0.00011287,2]
[353361492,1739796577582,-500.0,0.00011287,2]
[353361493,1739796577606,-500.0,0.00011287,2]
[353361494,1739796577630,-500.0,0.00011287,2]
[353361495,1739796577654,-500.0,0.00011287,2]
[353361496,1739796577679,-500.0,0.00011287,2]
[353361497,1739796577705,-2574.71,0.00011287,2]
[353361498,1739796577729,-500.0,0.00011287,2]
[353361499,1739796577753,-500.0,0.00011287,2]
[353361500,1739796577776,-500.0,0.00011287,2]
[353361501,1739796577800,-500.0,0.00011287,2]
[353361502,1739796577824,-500.0,0.00011287,2]
[353361503,1739796577853,-500.0,0.00011287,2]
[353361504,1739796577876,-500.0,0.00011287,2]
[353361505,1739796577903,-500.0,0.00011342,2]
[353361506,1739796577928,-505.08104598,0.00011342,2]
[353361507,1739796577952,-500.0,0.00011369,2]
[353361508,1739796577974,-500.0,0.00011369,2]
[353361509,1739796578000,-695.58,0.00011369,2]
[353361510,1739796578026,-3724.4,0.00011369,2]
[353361511,1739796578074,-500.0,0.00011369,2]
[353361512,1739796578100,-500.0,0.00011369,2]
[353361513,1739796578126,-500.0,0.00011369,2]
[353361514,1739796578150,-500.0,0.00011369,2]
[353361515,1739796578173,-500.0,0.00011369,2]
[353361516,1739796578196,-500.0,0.00011369,2]
[353361517,1739796578220,-500.0,0.00011369,2]
[353361518,1739796578244,-358.48,0.00011369,2]
[353361519,1739796578268,-500.0,0.00011369,2]
[353361520,1739796578295,-500.0,0.00011369,2]
[353361521,1739796578320,-500.0,0.00011369,2]
[353361522,1739796578345,-2574.71,0.00011369,2]
[353361523,1739796578373,-500.0,0.00011369,2]
[353361524,1739796578398,-500.0,0.00011369,2]
[353361525,1739796578423,-500.0,0.00011369,2]
[353361526,1739796578447,-500.0,0.00011369,2]
[353361527,1739796578477,-500.0,0.00011369,2]
[353361528,1739796578500,-166.08,0.00011369,2]
[353361529,1739796578522,-162.08141332,0.00011403,2]
[353361530,1739796578544,-500.0,0.00011416,2]
[353361531,1739796578566,-3724.4,0.00011451,2]
[353361532,1739796578590,-2574.71,0.00011451,2]
[353361533,1739796578612,-500.0,0.00011451,2]
[353361534,1739796578636,-695.58,0.00011452,2]
[353361535,1739796578660,-500.0,0.00011452,2]
[353361536,1739796578684,-597.4,0.00011452,2]
[353361537,1739796578708,-500.0,0.00011452,2]
[353361538,1739796578731,-500.0,0.00011452,2]
[353361539,1739796578755,-500.0,0.00011452,2]
[353361540,1739796578777,-500.0,0.00011452,2]
[353361541,1739796578801,-500.0,0.00011452,2]
[353361542,1739796578824,-500.0,0.00011452,2]
[353361543,1739796578848,-500.0,0.00011452,2]
[353361544,1739796578872,-560.8,0.00011452,2]
[353361545,1739796578895,-500.0,0.00011452,2]
[353361546,1739796578921,-500.0,0.00011452,2]
[353361547,1739796579033,-500.0,0.00011452,2]
[353361548,1739796579057,-500.0,0.0001147,2]
[353361549,1739796579079,-500.0,0.0001147,2]
[353361550,1739796579101,-500.0,0.0001147,2]
[353361551,1739796579125,-151.0,0.000115,2]
[353361552,1739796579150,-3724.4,0.00011533,2]
[353361553,1739796579174,-2574.71,0.00011533,2]
[353361554,1739796579197,-500.0,0.00011533,2]
[353361555,1739796579221,-695.58,0.00011534,2]
[353361556,1739796579245,-500.0,0.00011534,2]
[353361557,1739796579270,-500.0,0.00011534,2]
[353361558,1739796579296,-500.0,0.00011534,2]
[353361559,1739796579319,-429.96992156,0.00011534,2]
[353361560,1739796579343,-320.0,0.00011534,2]
[353361561,1739796579368,-500.0,0.00011534,2]
[353361562,1739796579392,-500.0,0.00011534,2]
[353361563,1739796579421,-500.0,0.00011534,2]
[353361564,1739796579444,-500.0,0.00011534,2]
[353361565,1739796579470,-500.0,0.00011534,2]
[353361566,1739796579494,-500.0,0.00011534,2]
[353361567,1739796579522,-695.58,0.00011616,2]
[353361568,1739796579547,-3724.4,0.00011616,2]
[353361569,1739796579574,-500.0,0.00011616,2]
[353361570,1739796579600,-500.0,0.00011616,2]
[353361571,1739796579623,-500.0,0.00011616,2]
[353361572,1739796579647,-500.0,0.00011616,2]
[353361573,1739796579670,-500.0,0.00011616,2]
[353361574,1739796579693,-500.0,0.00011616,2]
[353361575,1739796579719,-2574.71,0.00011616,2]
[353361576,1739796579744,-450.56,0.00011616,2]
[353361577,1739796579769,-500.0,0.00011616,2]
[353361578,1739796579795,-314.26535982,0.00011616,2]
[353361579,1739796579822,-500.0,0.00011616,2]
[353361580,1739796579846,-695.58,0.00011698,2]
[353361581,1739796579870,-3724.4,0.00011698,2]
[353361582,1739796579893,-500.0,0.00011698,2]
[353361583,1739796579917,-580.88,0.00011698,2]
[353361584,1739796579942,-500.0,0.00011698,2]
[353361585,1739796579967,-150.3,0.00011698,2]
[353361586,1739796579990,-500.0,0.00011698,2]
[353361587,1739796580015,-500.0,0.00011698,2]
[353361588,1739796580039,-2574.71,0.00011698,2]
[353361589,1739796580062,-500.0,0.00011698,2]
[353361590,1739796580086,-500.0,0.00011698,2]
[353361591,1739796580114,-695.58,0.0001178,2]
[353361592,1739796580140,-3724.4,0.0001178,2]
[353361593,1739796580164,-500.0,0.0001178,2]
[353361594,1739796580187,-432.15,0.0001178,2]
[353361595,1739796580211,-500.0,0.0001178,2]
[353361596,1739796580236,-500.0,0.0001178,2]
[353361597,1739796580264,-2574.71,0.0001178,2]
[353361598,1739796580291,-500.0,0.0001178,2]
[353361599,1739796580317,-500.0,0.0001178,2]
[353361600,1739796580342,-151.0,0.000118,2]
[353361601,1739796580368,-500.0,0.00011858,2]
[353361602,1739796580392,-500.0,0.00011858,2]
[353361603,1739796580414,-500.0,0.00011858,2]
[353361604,1739796580439,-500.0,0.00011858,2]
[353361605,1739796580462,-500.0,0.00011858,2]
[353361606,1739796580484,-502.10352721,0.00011858,2]
[353361607,1739796580509,-503.09335581,0.00011858,2]
[353361608,1739796580531,-500.0,0.00011858,2]
[353361609,1739796580554,-500.0,0.00011858,2]
[353361610,1739796580577,-500.0,0.00011858,2]
[353361611,1739796580599,-500.0,0.00011858,2]
[353361612,1739796580621,-160.56957692,0.00011858,2]
[353361613,1739796580941,-500.0,0.00011123,2]
[353361614,1739796580963,-500.0,0.00011205,2]
[353361615,1739796580983,-500.0,0.00011287,2]
[353361616,1739796581004,-428.62,0.00011369,2]
[353361617,1739796581582,500.0,0.00010957,2]
[353361618,1739796581908,500.0,0.00010957,2]
[353361619,1739796582256,500.0,0.00010957,2]
[353361620,1739796582574,500.0,0.00010957,2]
[353361621,1739796583461,500.0,0.00010957,2]
[353361622,1739796583800,500.0,0.00010957,2]
[353361623,1739796584113,374.7238282,0.00010957,2]
[353361624,1739796584802,500.0,0.00010958,2]
[353361625,1739796585078,500.0,0.00011041,2]
[353361626,1739796585109,474.65837893,0.00010958,2]
[353361627,1739796585337,500.0,0.00011123,2]
[353361628,1739796585601,528.84,0.00011205,2]
[353361630,1739796589518,500.0,0.00010958,2]
[353361631,1739796589780,500.0,0.00011041,2]
[353361632,1739796590101,500.0,0.00011123,2]
[353361633,1739796590385,500.0,0.00011205,2]
[353361634,1739796590661,484.59,0.00011287,2]
[353361635,1739796592821,2172.57,0.00010958,2]
[353361636,1739796593083,2172.57,0.00011041,2]
[353361637,1739796593410,2172.57,0.00011123,2]
[353361638,1739796593691,1930.84739374,0.00011205,2]
[353361649,1739796632729,-574.5,0.00010958,2]
[353361650,1739796632739,-500.0,0.00010958,2]
[353361651,1739796632748,-129.65000005,0.00010958,2]
[353361654,1739796632841,-370.34999995,0.00010958,2]
[353361656,1739796632851,-500.0,0.0001104,2]
[353361658,1739796632860,-500.0,0.00011041,2]
[353361660,1739796632870,-500.0,0.00011123,2]
[353361663,1739796632879,-502.80699252,0.00011123,2]
[353361665,1739796632888,-241.72260626,0.00011205,2]
[353361668,1739796632898,-500.0,0.00011205,2]
[353361670,1739796632906,-2172.57,0.00011287,2]
[353361673,1739796632916,-500.0,0.00011287,2]
[353361676,1739796632925,-2172.57,0.00011369,2]
[353361677,1739796632934,-500.0,0.00011369,2]
[353361681,1739796632944,-500.0,0.00011451,2]
[353361683,1739796632954,-2172.57,0.00011452,2]
[353361684,1739796632963,-500.0,0.00011533,2]
[353361687,1739796632974,-2172.57,0.00011534,2]
[353361689,1739796632983,-2172.57,0.00011616,2]
[353361691,1739796632993,-500.0,0.00011616,2]
[353361692,1739796633002,-2172.57,0.00011698,2]
[353361693,1739796633016,-500.0,0.00011698,2]
[353361694,1739796633025,-2172.57,0.0001178,2]
[353361695,1739796633035,-500.0,0.0001178,2]
[353361696,1739796633045,-339.43042308,0.00011858,2]
[353361697,1739796633054,-295.92341492,0.00011858,2]
[353361698,1739796633066,-204.07658508,0.00011858,2]
[353361699,1739796633076,-500.0,0.00011858,2]
[353361700,1739796633085,-500.0,0.00011858,2]
[353361701,1739796633095,-500.0,0.00011858,2]
[353361702,1739796633104,-400.66343707,0.00011858,2]
[353361718,1739796638553,-502.42176256,0.0001104,2]
[353361719,1739796638563,-99.33656293,0.00011858,2]
[353361720,1739796638574,-500.0,0.00011858,2]
[353361721,1739796638584,-500.0,0.00011858,2]
[353361722,1739796638593,-500.0,0.00011858,2]
[353361723,1739796638603,-500.0,0.00011858,2]
[353361724,1739796638612,-500.0,0.00011858,2]
[353361725,1739796638623,-500.0,0.00011859,2]
[353361726,1739796638633,-503.8892319,0.00011859,2]
[353361727,1739796638642,-170.80519076,0.00011859,2]
[353361728,1739796638652,-501.98577372,0.00011859,2]
[353361729,1739796638661,-500.0,0.00011859,2]
[353361730,1739796638671,-357.03131105,0.00011859,2]
[353361731,1739796638681,-500.0,0.00011859,2]
[353361732,1739796638690,-2574.71,0.00011862,2]
[353361733,1739796638699,-500.0,0.00011862,2]
[353361735,1739796638709,-344.1,0.00011863,2]
[353361736,1739796638718,-500.0,0.00011863,2]
[353361737,1739796638728,-500.0,0.00011863,2]
[353361738,1739796638739,-500.0,0.00011863,2]
[353361739,1739796638749,-2172.57,0.00011863,2]
[353361740,1739796638759,-159.18935782,0.00011868,2]
[353361741,1739796638768,-151.0,0.000119,2]
[353361742,1739796638779,-396.66082694,0.0001194,2]
[353361743,1739796638789,-500.0,0.0001194,2]
[353361744,1739796638798,-568.6316286,0.0001194,2]
[353361745,1739796638808,-500.0,0.0001194,2]
[353361746,1739796638819,-500.0,0.0001194,2]
[353361747,1739796638829,-501.91527297,0.0001194,2]
[353361748,1739796638839,-500.0,0.0001194,2]
[353361749,1739796638849,-500.0,0.0001194,2]
[353361750,1739796638858,-500.0,0.0001194,2]
[353361751,1739796638867,-498.39227632,0.0001194,2]
[353361752,1739796638877,-503.27838195,0.0001194,2]
[353361753,1739796638888,-500.0,0.0001194,2]
[353361754,1739796638899,-500.0,0.0001194,2]
[353361755,1739796638910,-500.0,0.0001194,2]
[353361756,1739796638920,-500.0,0.0001194,2]
[353361757,1739796638928,-500.0,0.0001194,2]
[353361758,1739796638938,-500.0,0.0001194,2]
[353361759,1739796638948,-522.67,0.0001194,2]
[353361760,1739796638958,-500.0,0.0001194,2]
[353361761,1739796638968,-500.0,0.0001194,2]
[353361762,1739796638977,-200.8950748,0.00011941,2]
[353361763,1739796638986,-500.0,0.00011941,2]
[353361764,1739796638995,-500.0,0.00011941,2]
[353361765,1739796639005,-2574.71,0.00011944,2]
[353361766,1739796639015,-500.0,0.00011944,2]
[353361767,1739796639024,-500.0,0.00011945,2]
[353361768,1739796639034,-500.0,0.00011945,2]
[353361769,1739796639043,-500.0,0.00011945,2]
[353361770,1739796639053,-2172.57,0.00011945,2]
[353361771,1739796639062,-500.0,0.00011964,2]
[353361772,1739796639072,-500.0,0.00012018,2]
[353361773,1739796639082,-500.0,0.00012023,2]
[353361774,1739796639091,-500.0,0.00012023,2]
[353361775,1739796639101,-500.0,0.00012023,2]
[353361776,1739796639110,-502.46238684,0.00012023,2]
[353361777,1739796639121,-500.0,0.00012023,2]
[353361778,1739796639130,-500.0,0.00012023,2]
[353361779,1739796639139,-500.0,0.00012023,2]
[353361780,1739796639150,-500.0,0.00012023,2]
[353361781,1739796639160,-500.0,0.00012023,2]
[353361782,1739796639169,-500.0,0.00012023,2]
[353361783,1739796639180,-502.37014656,0.00012023,2]
[353361784,1739796639190,-502.64067905,0.00012023,2]
[353361785,1739796639200,-500.0,0.00012023,2]
[353361786,1739796639210,-243.59,0.00012023,2]
[353361787,1739796639221,-501.62368495,0.00012024,2]
[353361788,1739796639230,-501.98469483,0.00012024,2]
[353361789,1739796639239,-500.0,0.00012027,2]
[353361790,1739796639249,-2574.71,0.00012027,2]
[353361791,1739796639259,-500.0,0.00012027,2]
[353361792,1739796639268,-220.38,0.00012027,2]
[353361793,1739796639278,-2172.57,0.00012027,2]
[353361794,1739796639287,-500.0,0.00012027,2]
[353361795,1739796639300,-151.0,0.000121,2]
[353361796,1739796639310,-500.0,0.00012105,2]
[353361797,1739796639319,-500.0,0.00012105,2]
[353361798,1739796639328,-500.0,0.00012105,2]
[353361799,1739796639337,-500.0,0.00012109,2]
[353361800,1739796639349,-2574.71,0.00012109,2]
[353361801,1739796639359,-500.0,0.00012109,2]
[353361802,1739796639368,-2172.57,0.00012109,2]
[353361803,1739796639380,-500.0,0.00012109,2]
[353361804,1739796639390,-500.0,0.00012186,2]
[353361805,1739796639401,-619.38729027,0.00012186,2]
[353361806,1739796639410,-500.0,0.00012186,2]
[353361807,1739796639420,-207.7083,0.00012186,2]
[353361808,1739796639430,-595.86099357,0.00012186,2]
[353361809,1739796639440,-500.0,0.00012186,2]
[353361810,1739796639449,-180.0,0.00012186,2]
[353361811,1739796639459,-500.0,0.00012186,2]
[353361812,1739796639469,-500.0,0.00012186,2]
[353361813,1739796639478,-500.0,0.00012186,2]
[353361814,1739796639487,-500.0,0.00012186,2]
[353361815,1739796639496,-522.92122045,0.00012186,2]
[353361816,1739796639506,-500.0,0.00012186,2]
[353361817,1739796639515,-500.0,0.00012186,2]
[353361818,1739796639524,-500.0,0.00012186,2]
[353361819,1739796639534,-500.0,0.00012186,2]
[353361820,1739796639543,-500.0,0.00012186,2]
[353361821,1739796639553,-500.0,0.00012186,2]
[353361822,1739796639562,-500.0,0.00012186,2]
[353361823,1739796639571,-500.0,0.00012186,2]
[353361824,1739796639582,-500.0,0.00012186,2]
[353361825,1739796639593,-500.0,0.00012186,2]
[353361826,1739796639602,-152.45,0.00012187,2]
[353361827,1739796639612,-500.0,0.00012187,2]
[353361828,1739796639621,-500.0,0.00012187,2]
[353361829,1739796639632,-500.0,0.00012191,2]
[353361830,1739796639641,-2574.71,0.00012191,2]
[353361831,1739796639651,-500.0,0.00012191,2]
[353361832,1739796639661,-2172.57,0.00012191,2]
[353361833,1739796639671,-500.0,0.00012191,2]
[353361834,1739796639680,-151.0,0.00012191,2]
[353361835,1739796639692,-224.89,0.00012269,2]
[353361836,1739796639702,-612.74,0.00012269,2]
[353361837,1739796639711,-500.0,0.00012273,2]
[353361838,1739796639721,-2190.07229512,0.00012273,2]
[353362046,1739796645689,-384.63770488,0.00012273,2]
[353362048,1739796645700,-500.0,0.00012273,2]
[353362051,1739796645710,-2172.57,0.00012273,2]
[353362053,1739796645719,-500.0,0.00012273,2]
[353362055,1739796645729,-151.0,0.000123,2]
[353362056,1739796645738,-2574.71,0.00012355,2]
[353362058,1739796645747,-247.09,0.00012355,2]
[353362061,1739796645757,-500.0,0.00012356,2]
[353362063,1739796645768,-602.31,0.00012356,2]
[353362065,1739796645777,-2172.57,0.00012356,2]
[353362067,1739796645787,-151.0,0.000124,2]
[353362069,1739796645796,-500.0,0.00012438,2]
[353362071,1739796645805,-2574.71,0.00012438,2]
[353362073,1739796645815,-2172.57,0.00012438,2]
[353362075,1739796645824,-568.4999999,0.0001252,2]
[353362077,1739796645833,-2574.71,0.0001252,2]
[353362079,1739796645842,-2172.57,0.0001252,2]
[353362082,1739796645862,-151.0,0.000126,2]
[353362084,1739796645873,-2574.71,0.00012602,2]
[353362086,1739796645883,-2172.57,0.00012602,2]
[353362088,1739796645893,-2574.71,0.00012684,2]
[353362090,1739796645903,-2172.57,0.00012684,2]
[353362092,1739796645913,-151.0,0.000127,2]
[353362095,1739796645923,-2574.71,0.00012766,2]
[353362097,1739796645933,-2172.57,0.00012767,2]
[353362099,1739796645943,-7438.69753278,0.00012838,2]
[353362101,1739796645953,-2574.71,0.00012849,2]
[353362103,1739796645963,-2172.65314278,0.00012849,2]
[353362105,1739796645972,-159.18935782,0.00012878,2]
[353362107,1739796645982,-500.0,0.00012896,2]
[353362109,1739796645992,-500.0,0.00012896,2]
[353362111,1739796646002,-500.0,0.00012896,2]
[353362113,1739796646012,-500.0,0.00012896,2]
[353362115,1739796646022,-500.0,0.00012896,2]
[353362117,1739796646032,-500.0,0.00012896,2]
[353362119,1739796646043,-500.0,0.00012896,2]
[353362121,1739796646053,-500.0,0.00012896,2]
[353362123,1739796646063,-500.0,0.00012896,2]
[353362125,1739796646073,-500.0,0.00012896,2]
[353362127,1739796646083,-500.0,0.00012896,2]
[353362129,1739796646092,-502.2918879,0.00012896,2]
[353362131,1739796646102,-500.0,0.00012896,2]
[353362134,1739796646115,-284.12821565,0.00012896,2]
[353362136,1739796646125,-502.05208065,0.00012896,2]
[353362138,1739796646134,-500.0,0.00012896,2]